bitfinex-derivatives/quotes_ETHF0:USTF0_20250606
["timestamp","ask_amount","ask_price","bid_price","bid_amount"]
[1749170562484,4.03229,2424.6,2424.5,0.07752405]
[1749170562877,0.82449,2424.6,2424.5,0.07752405]
[1749170563179,0.82448,2424.7,2424.5,0.07752405]
[1749170563479,0.82449,2424.6,2424.5,0.07752405]
[1749170564379,2.08549562,2424.6,2424.5,0.07752405]
[1749170564678,2.5211,2424.8,2424.5,0.07752405]
[1749170564981,0.82449,2424.6,2424.5,0.07752405]
[1749170565175,0.82447,2424.7,2424.5,0.90204405]
[1749170565375,3.34554,2424.8,2424.5,0.90204405]
[1749170565581,1.26116654,2424.7,2424.5,0.90202405]
[1749170565885,3.34555,2424.8,2424.5,0.07752405]
[1749170566085,0.82447,2424.7,2424.5,0.90203405]
[1749170566285,0.82447,2424.7,2424.5,0.07752405]
[1749170566482,0.82449,2424.6,2424.5,0.07752405]
[1749170567287,2.5211,2424.8,2424.5,0.07752405]
[1749170567496,1.26209623,2424.7,2424.5,0.07752405]
[1749170567794,0.82449,2424.6,2424.5,0.07752405]
[1749170568691,5.29489014,2424.6,2424.5,0.07752405]
[1749170570894,5.29610095,2424.6,2424.5,0.07752405]
[1749170572189,10.29610095,2424.6,2424.5,0.07752405]
[1749170572392,5.29610095,2424.6,2424.5,0.07752405]
[1749170573092,11.53287095,2424.6,2423.9,4.139]
[1749170573288,11.53287095,2424.6,2423.9,0.82472]
[1749170573289,4.71172095,2424.5,2423.9,0.82472]
[1749170573485,0.82466,2424.1,2423.9,0.82472]
[1749170573989,0.82473,2423.9,2423.8,9.0968]
[1749170574189,3.2078,2424.3,2423.8,10.4019]
[1749170574391,2.08959331,2424.2,2424.0,0.82468]
[1749170574588,1.26495331,2424.1,2424.0,0.82468]
[1749170575483,4.03241,2424.3,2424.0,0.82468]
[1749170575484,0.82463,2424.2,2424.0,0.82468]
[1749170575690,0.82463,2424.2,2423.9,0.82471]
[1749170575891,2.09034113,2424.1,2423.9,0.82471]
[1749170576183,0.82467,2424.1,2423.9,0.82471]
[1749170577095,3.2078,2424.3,2423.8,9.0968]
[1749170577096,0.82464,2424.2,2423.8,9.0968]
[1749170577289,1.26570709,2424.1,2423.9,0.82471]
[1749170577490,0.82464,2424.2,2423.9,0.82471]
[1749170577690,2.09030876,2424.1,2423.9,0.82471]
[1749170577894,0.82466,2424.1,2423.9,0.82471]
[1749170578196,1.3069,2424.4,2424.0,0.82468]
[1749170578394,1.26556066,2424.3,2423.8,9.0968]
[1749170578597,0.82466,2424.1,2423.8,9.0968]
[1749170578897,0.82466,2424.1,2423.8,9.92154]
[1749170579204,0.82466,2424.1,2423.9,0.82472]
[1749170580001,0.82465,2424.2,2423.9,0.82472]
[1749170580201,1.26523444,2424.1,2423.9,0.82472]
[1749170580402,0.82465,2424.2,2423.9,0.82472]
[1749170580601,1.2651891,2424.1,2423.9,0.82472]
[1749170580902,0.82466,2424.1,2423.9,0.82472]
[1749170581098,0.8247,2424.0,2423.8,9.0968]
[1749170581299,0.8247,2424.0,2423.8,9.92156]
[1749170581492,0.82468,2424.1,2423.8,9.92156]
[1749170581696,2.08991453,2424.0,2423.8,9.92156]
[1749170581897,0.82469,2424.0,2423.8,9.92156]
[1749170582095,0.82468,2424.1,2423.8,9.92156]
[1749170582398,1.26523074,2424.0,2423.8,9.92154]
[1749170582599,0.82468,2424.1,2423.8,9.92154]
[1749170582798,1.26513704,2424.0,2423.8,9.92154]
[1749170582990,0.82476,2423.8,2423.7,1.34609054]
[1749170583194,2.09000971,2423.8,2423.7,0.00619054]
[1749170583403,1.26524971,2423.8,2423.7,0.00619054]
[1749170583604,2.13525,2423.9,2423.7,0.00619054]
[1749170583996,2.13525,2423.9,2423.7,0.83098054]
[1749170584203,1.3105,2423.9,2423.8,0.82476]
[1749170584502,3.40113114,2423.9,2423.7,0.00619054]
[1749170584803,2.13523,2423.9,2423.7,0.90231405]
[1749170585200,2.09046041,2423.8,2423.7,0.07752405]
[1749170587008,1.26570041,2423.8,2423.7,0.07752405]
[1749170587302,0.82476,2423.8,2423.7,0.07752405]
[1749170588704,2.13524,2423.9,2423.7,0.90231405]
[1749170589001,1.3105,2423.9,2423.8,0.82476]
[1749170589206,2.57544921,2423.9,2423.8,0.82476]
[1749170589407,0.82465,2424.2,2424.0,0.82467]
[1749170589606,1.26482405,2424.1,2424.0,0.82467]
[1749170589810,1.26482405,2424.1,2423.9,0.82471]
[1749170590011,4.03241,2424.3,2423.9,1.3402]
[1749170590203,2.08914485,2424.2,2424.0,0.82468]
[1749170590403,1.26451485,2424.1,2423.9,1.3402]
[1749170590710,0.82464,2424.2,2424.0,0.82469]
[1749170590909,2.08923531,2424.1,2423.9,2.16491]
[1749170591100,2.08930136,2424.0,2423.9,1.3402]
[1749170591302,2.08930136,2424.0,2423.8,2.15934]
[1749170591511,3.2078,2424.3,2424.0,0.82469]
[1749170591710,0.82468,2424.1,2423.9,2.1491]
[1749170592009,0.82473,2423.9,2423.8,1.3346]
[1749170592307,0.82476,2423.8,2423.7,0.07752405]
[1749170592507,0.82475,2423.9,2423.7,0.90231405]
[1749170592705,0.82476,2423.8,2423.7,0.07752405]
[1749170593009,0.82474,2423.9,2423.7,0.90231405]
[1749170593411,1.2501,2424.0,2423.7,0.07752405]
[1749170593709,0.82476,2423.8,2423.7,0.07752405]
[1749170593910,0.82474,2423.9,2423.7,0.07752405]
[1749170594113,0.82476,2423.8,2423.7,0.07752405]
[1749170594307,1.2501,2424.0,2423.7,0.07752405]
[1749170594513,0.82476,2423.8,2423.7,0.07752405]
[1749170595515,0.82475,2423.9,2423.7,0.07752405]
[1749170596509,1.26657471,2423.8,2423.7,0.07752405]
[1749170596707,2.09133471,2423.8,2423.7,0.07752405]
[1749170598609,3.44933471,2423.8,2423.7,0.07752405]
[1749170600616,3.44964348,2423.8,2423.7,0.07752405]
[1749170602616,2.06199,2423.7,2422.8,17.31871161]
[1749170602816,0.82503,2423.0,2422.9,1.3054]
[1749170603119,2.09214753,2423.0,2422.9,1.3054]
[1749170603513,0.82503,2423.0,2422.9,1.3054]
[1749170604015,2.15301,2423.1,2422.9,2.13045]
[1749170604221,2.09277234,2423.0,2422.9,1.3054]
[1749170604418,0.82503,2423.0,2422.9,1.3054]
[1749170606323,0.82507,2422.9,2422.8,14.55462161]
[1749170606530,5.29919121,2422.9,2422.8,13.28582161]
[1749170606720,11.55899121,2422.9,2422.8,13.28582161]
[1749170608425,10.73392121,2422.9,2422.2,3.2078]
[1749170608722,3.2078,2422.6,2422.2,3.2078]
[1749170609021,0.82527,2422.3,2422.2,4.5102]
[1749170610417,3.2078,2422.3,2422.0,0.00619054]
[1749170610625,9.20792546,2422.2,2421.5,3.2078]
[1749170610819,0.8255,2421.7,2421.5,3.2078]
[1749170611015,0.82551,2421.6,2421.5,3.2078]
[1749170611222,3.2078,2421.7,2421.1,7.1025]
[1749170611519,3.2078,2421.4,2420.8,3.2078]
[1749170611721,0.82561,2421.3,2421.2,0.00619054]
[1749170611921,2.04081,2421.3,2421.2,0.00619054]
[1749170612821,0.00619054,2421.6,2421.2,0.00619054]
[1749170613027,0.00619054,2421.6,2421.5,0.82554]
[1749170614021,0.00619054,2421.6,2421.5,2.14144]
[1749170614922,0.00619054,2421.6,2421.5,2.21277351]
[1749170615121,3.2078,2422.1,2422.0,0.82537]
[1749170615318,5.35535,2422.4,2421.7,3.2078]
[1749170615526,5.35535,2422.4,2422.1,0.82533]
[1749170615724,0.82528,2422.3,2422.0,0.82536]
[1749170615927,5.35536,2422.4,2422.1,2.13371]
[1749170616127,0.82527,2422.3,2422.1,1.3084]
[1749170617430,0.00619054,2422.5,2422.1,1.3084]
[1749170617630,0.00619054,2422.5,2422.3,0.82526]
[1749170617928,0.00619054,2422.5,2422.2,1.2818]
[1749170617929,0.00619054,2422.5,2422.4,0.82524]
[1749170618530,0.00619054,2422.5,2422.4,2.12454]
[1749170619329,0.82498,2423.2,2422.9,0.82507]
[1749170619533,0.82496,2423.2,2423.0,1.2993]
[1749170619735,4.03275,2423.3,2423.0,2.12433]
[1749170620434,0.82497,2423.2,2423.0,2.12433]
[1749170620627,0.82498,2423.2,2423.0,1.2993]
[1749170620828,0.82498,2423.2,2423.0,2.12433]
[1749170621231,4.03275,2423.3,2423.0,2.12433]
[1749170621727,0.00619054,2423.4,2423.3,0.82493]
[1749170621923,0.00619054,2423.4,2423.0,1.2993]
[1749170622326,0.82494,2423.3,2423.1,0.82498]
[1749170622541,0.83110054,2423.4,2423.1,0.82498]
[1749170622742,0.83110054,2423.4,2423.2,1.2745]
[1749170623037,0.82493,2423.3,2423.2,1.2745]
[1749170623636,0.83110054,2423.4,2423.2,1.2745]
[1749170624035,0.00619054,2423.4,2423.3,0.82493]
[1749170624335,0.00619054,2423.4,2423.3,2.08973]
[1749170624542,0.00619054,2423.4,2423.3,3.43313]
[1749170625034,0.00619054,2423.4,2423.3,4.74013]
[1749170625642,0.00619054,2423.4,2423.3,15.55313]
[1749170626530,0.00619054,2423.4,2423.3,4.74013]
[1749170627638,0.33337776,2424.1,2423.8,0.82474]
[1749170627838,0.82467,2424.1,2423.9,2.18161]
[1749170628032,11.12544,2424.2,2423.9,2.18161]
[1749170628233,10.3008,2424.2,2424.0,0.82467]
[1749170628433,11.12544,2424.2,2424.0,1.3569]
[1749170628835,11.12544,2424.2,2424.0,2.18157]
[1749170628836,2.10464,2424.2,2424.0,2.18157]
[1749170629640,3.2078,2424.1,2423.8,1.2914]
[1749170629840,3.2078,2424.1,2423.6,0.82481]
[1749170629841,0.82476,2423.9,2423.6,0.82481]
[1749170630042,0.82476,2423.9,2423.6,2.18141]
[1749170630536,0.82477,2423.8,2423.6,2.18141]
[1749170630840,0.82475,2423.9,2423.6,2.18141]
[1749170631641,0.82475,2423.9,2423.7,0.82479]
[1749170632138,0.82472,2424.0,2423.6,1.3566]
[1749170632336,3.2078,2424.1,2423.6,1.3566]
[1749170632639,0.8247,2424.0,2423.8,0.82474]
[1749170632841,0.8247,2424.0,2423.8,2.18994]
[1749170633041,3.2078,2424.1,2423.8,1.3652]
[1749170633236,4.03248,2424.1,2423.9,0.82472]
[1749170633547,0.82469,2424.0,2423.8,2.18994]
[1749170633840,0.82467,2424.1,2423.9,0.82472]
[1749170634041,0.82469,2424.0,2423.8,2.18995]
[1749170634434,0.82468,2424.1,2423.8,2.18995]
[1749170634739,0.82468,2424.1,2423.8,0.82475]
[1749170634946,3.2078,2424.1,2423.8,0.82476]
[1749170635141,0.82471,2424.0,2423.7,1.2689]
[1749170635346,0.82471,2424.0,2423.8,0.82473]
[1749170635943,3.2078,2424.1,2423.5,1.3194]
[1749170636137,3.2078,2424.1,2423.6,1.2701]
[1749170636342,4.03246,2424.1,2424.0,0.07133351]
[1749170637943,5.31306,2424.1,2424.0,0.07133351]
[1749170639149,10.31306,2424.1,2424.0,0.07133351]
[1749170641048,5.31306,2424.1,2424.0,0.07133351]
[1749170641642,9.03246,2424.1,2424.0,0.07133351]
[1749170641845,14.84446,2424.1,2424.0,0.07133351]
[1749170642143,16.14646,2424.1,2424.0,0.07133351]
[1749170642346,17.47157545,2424.1,2424.0,0.07133351]
[1749170642654,12.47157545,2424.1,2424.0,0.07133351]
[1749170643145,17.47157545,2424.1,2424.0,0.07133351]
[1749170643353,12.47157545,2424.1,2424.0,0.07133351]
[1749170644854,11.16957545,2424.1,2424.0,0.07133351]
[1749170646348,11.16957545,2424.1,2424.0,0.89602351]
[1749170646349,4.53291545,2424.1,2424.0,0.89602351]
[1749170646542,0.00619054,2424.3,2424.1,0.82463]
[1749170646849,0.83078054,2424.3,2424.2,1.2766]
[1749170647047,2.15988244,2424.3,2424.2,1.2766]
[1749170647247,1.33529244,2424.3,2424.2,2.10122]
[1749170647755,1.33529244,2424.3,2424.2,1.2766]
[1749170648156,2.15988244,2424.3,2424.2,1.2766]
[1749170648351,1.33529244,2424.3,2424.2,2.10122]
[1749170648656,1.33529244,2424.3,2424.2,5.30902]
[1749170648854,1.2593,2424.9,2424.2,9.4844]
[1749170649055,1.33085129,2424.8,2424.6,0.82449]
[1749170649257,0.82444,2424.8,2424.7,1.3067]
[1749170649554,2.15540704,2424.8,2424.7,1.3067]
[1749170649755,1.33096704,2424.8,2424.7,1.3067]
[1749170649959,1.33096704,2424.8,2424.7,2.13115]
[1749170650360,1.33096704,2424.8,2424.7,1.3067]
[1749170650748,1.33096704,2424.8,2424.7,7.5588]
[1749170650950,3.2078,2425.3,2424.9,0.82437]
[1749170651160,1.33114209,2425.2,2425.1,3.2078]
[1749170651359,2.15542209,2425.2,2425.1,4.569]
[1749170651963,1.33114209,2425.2,2425.1,5.39332]
[1749170652351,1.33011536,2425.2,2425.1,4.569]
[1749170652755,1.33011536,2425.2,2425.1,5.8838]
[1749170652958,1.33011536,2425.2,2425.1,11.70812]
[1749170653156,0.8241,2425.8,2425.1,10.8838]
[1749170653365,2.15334388,2425.7,2425.4,4.03199]
[1749170653562,1.32922388,2425.6,2425.4,3.2078]
[1749170653860,0.82425,2425.3,2425.0,0.82434]
[1749170654056,1.32547181,2425.2,2424.9,1.3612]
[1749170654258,0.82432,2425.1,2424.9,1.3612]
[1749170654463,0.82431,2425.2,2424.9,2.18557]
[1749170654653,0.82435,2425.0,2424.9,1.3612]
[1749170654857,3.2078,2425.2,2424.8,3.2078]
[1749170655057,2.14638105,2425.1,2424.9,1.3143]
[1749170655362,1.32204105,2425.0,2424.9,1.3143]
[1749170655763,2.14639105,2425.0,2424.9,1.3143]
[1749170656764,1.32204105,2425.0,2424.9,1.3143]
[1749170656963,2.14639105,2425.0,2424.9,1.3143]
[1749170658162,1.32204105,2425.0,2424.9,1.3143]
[1749170658463,2.14639105,2425.0,2424.9,1.3143]
[1749170659262,1.32204105,2425.0,2424.5,0.00619054]
[1749170659454,0.82449,2424.6,2424.5,0.00619054]
[1749170659860,2.14694762,2424.6,2424.5,0.00619054]
[1749170661263,1.32245762,2424.6,2424.5,0.00619054]
[1749170661569,2.14694762,2424.6,2424.5,0.00619054]
[1749170661767,1.32245762,2424.6,2424.5,0.83071054]
[1749170661967,1.2176,2424.9,2424.5,0.83071054]
[1749170661968,1.32266948,2424.7,2424.5,3.21399054]
[1749170662157,0.82436,2425.0,2424.6,2.6429]
[1749170662364,7.0572,2425.2,2424.8,4.03222]
[1749170662365,1.32262817,2424.9,2424.8,4.03222]
[1749170662561,1.32262817,2424.9,2424.8,5.38932]
[1749170663268,2.14701817,2424.9,2424.8,4.5649]
[1749170664068,1.32262817,2424.9,2424.8,5.38932]
[1749170664559,1.32262817,2424.9,2424.8,3.2078]
[1749170664764,0.82442,2424.8,2424.7,1.2611]
[1749170664965,1.32262817,2424.8,2424.5,0.00619054]
[1749170665164,3.2078,2425.1,2424.6,0.82449]
[1749170665165,1.32262817,2424.7,2424.6,0.82449]
[1749170665370,1.32262817,2424.7,2424.6,2.21819]
[1749170665573,1.32262817,2424.7,2424.6,1.3937]
[1749170665767,2.14707817,2424.7,2424.6,1.3937]
[1749170665967,1.32262817,2424.7,2424.6,2.21819]
[1749170666167,1.32262817,2424.7,2424.6,5.42599]
[1749170666366,1.32262817,2424.7,2424.6,11.19899]
[1749170672580,3.2078,2425.1,2424.6,4.6015]
[1749170672772,1.32340225,2425.0,2424.9,0.07133351]
[1749170672972,2.14775225,2425.0,2424.9,0.07133351]
[1749170677976,1.32340225,2425.0,2424.9,0.89572351]
[1749170678682,3.2078,2425.9,2424.9,14.05213351]
[1749170678880,1.3285,2425.7,2424.9,9.05213351]
[1749170679078,0.8242,2425.5,2425.0,1.2953]
[1749170679278,1.32701764,2425.4,2425.3,0.82423]
[1749170679982,1.32701764,2425.4,2425.3,2.11953]
[1749170680781,0.82412,2425.7,2425.5,0.82418]
[1749170681083,1.32418741,2425.6,2425.5,0.82418]
[1749170682379,1.32418741,2425.6,2425.3,2.11953]
[1749170682580,1.32418741,2425.5,2425.2,4.4738]
[1749170682884,1.2128,2425.8,2425.2,4.4738]
[1749170682885,0.82425,2425.3,2425.2,3.2078]
[1749170683076,2.14808208,2425.3,2425.2,3.2078]
[1749170683276,1.32383208,2425.3,2425.2,3.2078]
[1749170684183,1.32383208,2425.3,2425.2,4.515]
[1749170684588,2.14808208,2425.3,2425.2,3.2078]
[1749170684883,2.58553208,2425.3,2425.2,4.03208]
[1749170685885,2.58553208,2425.3,2425.2,3.2078]
[1749170687290,3.40978208,2425.3,2425.2,3.2078]
[1749170689388,3.40978208,2425.3,2425.0,1.268]
[1749170689589,2.08595,2425.3,2425.1,0.82432]
[1749170689796,0.82435,2425.0,2424.9,3.27913351]
[1749170690088,1.323775,2425.1,2424.7,2.13754]
[1749170690289,2.148155,2425.0,2424.7,3.40914]
[1749170690488,1.323775,2424.9,2424.7,3.40914]
[1749170690687,2.148165,2424.9,2424.7,3.40914]
[1749170690884,0.82439,2424.9,2424.7,3.40914]
[1749170691286,0.82436,2425.0,2424.8,0.82442]
[1749170691587,1.32522782,2424.9,2424.8,0.82442]
[1749170692189,1.32522782,2424.9,2424.7,3.40913]
[1749170692387,1.32522782,2424.8,2424.7,3.40913]
[1749170692588,1.32522782,2424.9,2424.7,3.40913]
[1749170692892,0.82437,2425.0,2424.7,3.40913]
[1749170693093,1.2617,2425.3,2425.2,0.07133351]
[1749170693293,2.58722441,2425.3,2425.2,0.07133351]
[1749170693593,3.41147441,2425.3,2425.2,0.07133351]
[1749170699199,0.82445,2424.7,2424.6,4.4257]
[1749170699496,0.82445,2424.7,2424.6,3.2078]
[1749170699994,0.82449,2424.6,2424.5,0.00619054]
[1749170700401,2.14995159,2424.6,2424.5,0.00619054]
[1749170702595,1.32546159,2424.6,2424.5,5.00619054]
[1749170702799,5.75119012,2425.6,2424.5,3.21399054]
[1749170702800,0.32003764,2425.2,2424.5,3.21399054]
[1749170702995,1.2971,2424.9,2424.6,2.5997]
[1749170703195,0.82445,2424.7,2424.6,2.5997]
[1749170703399,2.14918405,2424.7,2424.6,2.5997]
[1749170703802,2.14918405,2424.7,2424.6,1.3023]
[1749170705100,0.82449,2424.6,2424.5,0.00619054]
[1749170705303,2.14922405,2424.6,2424.5,0.00619054]
[1749170706805,2.14922405,2424.6,2424.5,1.27409054]
[1749170707705,2.14922405,2424.6,2424.5,0.00619054]
[1749170708509,3.44632405,2424.6,2424.5,0.00619054]
[1749170708812,2.14922405,2424.6,2424.5,0.00619054]
[1749170709305,2.14922405,2424.6,2424.5,2.54169054]
[1749170709509,1.32473405,2424.6,2424.5,2.54169054]
[1749170709909,2.14922405,2424.6,2424.5,2.54169054]
[1749170710107,1.32473405,2424.6,2424.5,2.54169054]
[1749170710608,0.82443,2424.8,2424.6,0.82447]
[1749170710914,1.32338395,2424.7,2424.6,2.14978]
[1749170711102,0.82443,2424.8,2424.6,3.36358]
[1749170711300,1.32345175,2424.7,2424.6,3.43491351]
[1749170711504,1.32345175,2424.7,2424.6,2.61043351]
[1749170711904,1.32345175,2424.7,2424.6,3.43491351]
[1749170712412,1.32367916,2424.7,2424.6,2.61043351]
[1749170713311,1.32393723,2424.7,2424.6,2.61043351]
[1749170713515,1.32393723,2424.7,2424.6,3.43491351]
[1749170714109,1.32393723,2424.7,2424.6,2.61043351]
[1749170714418,0.82439,2424.9,2424.6,3.43490351]
[1749170714618,1.32418283,2424.8,2424.6,3.43490351]
[1749170714924,0.82439,2424.9,2424.6,3.43489351]
[1749170715121,1.32453638,2424.8,2424.6,3.43489351]
[1749170715418,0.82439,2424.9,2424.6,3.43489351]
[1749170715619,2.5462,2425.1,2424.6,3.43489351]
[1749170715620,1.32461455,2424.8,2424.7,0.82445]
[1749170715820,1.2563,2425.1,2424.6,8.34843351]
[1749170716014,1.32586501,2425.0,2424.7,0.82444]
[1749170716211,2.15024501,2424.9,2424.7,0.82444]
[1749170716525,2.15048466,2424.8,2424.6,7.02313351]
[1749170716724,0.82445,2424.7,2424.6,2.57333351]
[1749170717222,4.03225,2424.7,2424.6,0.07133351]
[1749170717521,2.1507739,2424.7,2424.6,0.07133351]
[1749170718917,5.3585739,2424.7,2424.6,0.07133351]
[1749170719721,5.3585739,2424.7,2423.2,2.06238]
[1749170719722,11.5953039,2424.7,2424.1,1.2221]
[1749170719924,11.5953039,2424.7,2423.7,1.2887]
[1749170719925,0.82475,2423.9,2423.7,1.2887]
[1749170720227,3.2078,2424.2,2423.7,1.2887]
[1749170720228,2.15215814,2423.8,2423.7,1.2887]
[1749170720517,0.82486,2423.5,2423.4,2.5019]
[1749170720722,2.15225814,2423.5,2423.4,2.5019]
[1749170720916,1.32739814,2423.5,2423.4,2.5019]
[1749170721118,0.00619054,2423.7,2423.6,0.82482]
[1749170721321,0.00619054,2423.7,2423.6,4.03262]
[1749170721631,0.00619054,2423.7,2423.6,9.03262]
[1749170722114,0.00619054,2423.7,2423.6,3.2078]
[1749170722317,0.00619054,2423.7,2423.6,14.73962]
[1749170724326,0.00619054,2423.7,2423.6,9.73962]
[1749170724526,0.00619054,2423.7,2423.6,14.73962]
[1749170728526,0.00619054,2423.7,2423.6,9.73962]
[1749170729925,5.4e-07,2423.7,2423.6,14.73962]
[1749170730136,2.5163,2425.0,2424.0,2.06168]
[1749170730327,1.33751669,2424.9,2424.7,0.82444]
[1749170730631,2.16196669,2424.8,2424.6,0.07133351]
[1749170730827,1.33751669,2424.7,2424.6,0.07133351]
[1749170731035,2.16196669,2424.7,2424.6,0.07133351]
[1749170731236,7.16196669,2424.7,2424.6,0.07133351]
[1749170731529,8.52026669,2424.7,2424.6,0.07133351]
[1749170732330,0.82452,2424.5,2424.4,0.00619054]
[1749170732636,4.03232,2424.5,2424.4,0.00619054]
[1749170732835,10.36983669,2424.5,2424.4,0.00619054]
[1749170733034,14.18613669,2424.5,2424.4,0.00619054]
[1749170733731,0.82472,2423.9,2423.8,3.2078]
[1749170734329,1.33751669,2424.1,2423.5,1.3246]
[1749170734330,0.82482,2423.6,2423.5,5.707]
[1749170734827,1.29399054,2423.8,2423.5,5.707]
[1749170735028,0.00619054,2423.8,2423.7,3.2078]
[1749170735229,0.00619054,2423.8,2423.6,3.5265]
[1749170735428,0.00619054,2423.8,2423.7,1.3741]
[1749170735733,0.00619054,2423.8,2423.7,2.19889]
[1749170735927,0.00619054,2423.8,2423.7,1.3741]
[1749170736328,0.83095054,2423.8,2423.7,1.3741]
[1749170737227,0.83095054,2423.8,2423.5,6.53184]
[1749170737228,0.82482,2423.6,2423.5,5.707]
[1749170738337,0.82481,2423.7,2423.5,5.707]
[1749170738632,0.82482,2423.6,2423.5,5.707]
[1749170739531,0.82481,2423.7,2423.5,7.0997]
[1749170739728,0.00619054,2423.8,2423.7,0.82479]
[1749170740332,0.00619054,2423.8,2423.7,3.50549]
[1749170740533,5.4e-07,2423.8,2423.7,11.71329]
[1749170741133,5.4e-07,2423.8,2423.7,17.42129]
[1749170741336,5.4e-07,2423.8,2423.7,12.42129]
[1749170745042,5.4e-07,2423.8,2423.7,0.82479]
[1749170746034,5.4e-07,2423.8,2423.7,4.03259]
[1749170747438,5.4e-07,2423.8,2423.7,8.8878]
[1749170747736,5.4e-07,2423.8,2423.7,6.50479]
[1749170748136,1.34171446,2423.8,2423.7,6.50479]
[1749170748442,5.4e-07,2423.8,2423.7,6.50479]
[1749170748844,1.34171446,2423.8,2423.7,6.50479]
[1749170749237,5.4e-07,2423.8,2423.7,6.50479]
[1749170749538,1.34171446,2423.8,2423.7,6.50479]
[1749170749737,2.16647446,2423.8,2423.7,6.57612351]
[1749170749937,1.34171446,2423.8,2423.7,0.07133351]
[1749170750244,2.16647446,2423.8,2423.7,0.07133351]
[1749170750448,2.16647446,2423.8,2423.7,0.89612351]
[1749170750449,1.34171446,2423.8,2423.7,0.89612351]
[1749170750635,2.16647446,2423.8,2423.7,0.07133351]
[1749170751035,1.34171446,2423.8,2423.7,0.89612351]
[1749170751236,1.34218384,2423.8,2423.7,0.89612351]
[1749170751934,1.34218384,2423.8,2423.7,4.10392351]
[1749170752140,1.34218384,2423.8,2423.7,5.37232351]
[1749170755844,2.16694384,2423.8,2423.7,3.27913351]
[1749170757146,1.34218384,2423.8,2423.7,4.10392351]
[1749170757346,2.16694384,2423.8,2423.7,3.27913351]
[1749170758743,2.16694384,2423.8,2423.7,0.07133351]
[1749170762341,1.34218384,2423.8,2423.7,0.07133351]
[1749170762546,2.16694384,2423.8,2423.7,0.07133351]
[1749170765143,1.34218384,2423.8,2423.7,0.07133351]
[1749170765347,2.16694384,2423.8,2423.7,0.07133351]
[1749170765950,1.34218384,2423.8,2423.7,0.89612351]
[1749170766452,1.34218384,2423.8,2423.7,5.89612351]
[1749170766753,5.4e-07,2423.8,2423.7,7.19122351]
[1749170767250,5.4e-07,2423.8,2423.7,12.87222351]
[1749170768553,5.4e-07,2423.8,2423.7,2.19122351]
[1749170768754,5.4e-07,2423.8,2423.7,1.36643351]
[1749170768755,0.82476054,2423.8,2423.7,1.36643351]
[1749170769053,0.82476054,2423.8,2423.7,0.07133351]
[1749170769955,2.16898406,2423.8,2423.7,0.07133351]
[1749170771153,1.34422406,2423.8,2423.7,0.89612351]
[1749170771447,5.4e-07,2423.8,2423.7,2.25762351]
[1749170771648,5.4e-07,2423.8,2423.7,7.25762351]
[1749170773759,5.4e-07,2423.8,2423.7,2.25762351]
[1749170774148,5.4e-07,2423.8,2423.7,12.93762351]
[1749170776261,5.4e-07,2423.8,2423.7,7.25762351]
[1749170776561,5.4e-07,2423.8,2423.7,12.93762351]
[1749170778861,2.00042,2425.1,2424.8,0.82438]
[1749170779172,2.00042,2425.1,2423.7,16.23666351]
[1749170779173,1.37851089,2425.0,2424.4,3.2078]
[1749170779469,0.82459,2424.3,2424.0,0.82466]
[1749170779670,2.06098,2424.9,2424.0,1.3767]
[1749170779868,2.06122,2424.6,2423.9,3.2078]
[1749170780166,0.82469,2424.0,2423.9,3.2078]
[1749170780367,2.20518241,2424.0,2423.9,3.2078]
[1749170780768,0.82476,2423.8,2423.7,0.07752405]
[1749170780964,2.2801,2423.9,2423.7,0.07752405]
[1749170781165,0.82476,2423.8,2423.7,0.07752405]
[1749170781569,2.2801,2423.9,2423.7,0.07752405]
[1749170781762,0.82476,2423.8,2423.7,0.07752405]
[1749170782266,2.2801,2423.9,2423.8,0.82476]
[1749170782461,2.2801,2423.9,2423.7,6.55629405]
[1749170782973,3.10482,2423.9,2423.7,5.73152405]
[1749170783161,2.2801,2423.9,2423.7,6.55629405]
[1749170783364,3.10482,2423.9,2423.7,6.55629405]
[1749170783571,2.2801,2423.9,2423.7,6.55629405]
[1749170784470,2.2801,2423.9,2423.7,5.73152405]
[1749170785073,2.2801,2423.9,2423.7,7.91021405]
[1749170785275,3.2078,2424.4,2423.7,7.08542405]
[1749170785573,1.38060128,2424.3,2423.8,3.2078]
[1749170785777,0.82472,2423.9,2423.8,3.2078]
[1749170785967,0.82471,2424.0,2423.8,3.2078]
[1749170786168,0.82472,2423.9,2423.8,3.2078]
[1749170787870,1.376,2424.2,2423.8,3.2078]
[1749170788170,0.82469,2424.0,2423.8,3.2078]
[1749170788370,5.5579,2424.4,2423.8,3.2078]
[1749170788570,0.8247,2424.0,2423.8,3.2078]
[1749170788771,0.82472,2423.9,2423.8,3.2078]
[1749170789471,0.82472,2423.9,2423.8,8.8618]
[1749170792771,0.82476,2423.8,2423.7,0.07752405]
[1749170792972,5.82559714,2423.8,2423.7,0.07752405]
[1749170795273,5.82563623,2423.8,2423.7,0.07752405]
[1749170796364,6.16076162,2423.8,2423.7,0.07752405]
[1749170796565,2.06198,2423.7,2423.0,5.654]
[1749170796769,0.82499,2423.1,2423.0,5.654]
[1749170797572,0.82506,2422.9,2422.8,0.00619054]
[1749170797771,2.20813262,2422.9,2422.8,0.00619054]
[1749170798171,0.82506,2422.9,2422.8,0.00619054]
[1749170798372,2.20726578,2422.9,2422.8,0.00619054]
[1749170798572,0.82506,2422.9,2422.8,0.00619054]
[1749170799565,2.09726,2422.9,2422.8,0.00619054]
[1749170801676,0.82506,2422.9,2422.8,0.00619054]
[1749170802077,1.1905,2423.0,2422.8,0.00619054]
[1749170802268,0.00619054,2423.3,2422.9,6.48006]
[1749170802474,0.00619054,2423.3,2422.9,5.655]
[1749170802674,0.82503,2423.0,2422.9,5.655]
[1749170803176,0.82506,2422.9,2422.8,2.55459054]
[1749170803376,0.82506,2422.9,2422.8,0.00619054]
[1749170805182,0.82506,2422.9,2422.8,1.34239054]
[1749170805382,0.82506,2422.9,2422.8,0.00619054]
[1749170806473,2.20293087,2422.9,2422.8,0.00619054]
[1749170806679,3.50193087,2422.9,2422.8,0.00619054]
[1749170806878,3.50193087,2422.9,2422.1,5.656]
[1749170806879,2.06275,2422.8,2422.1,5.656]
[1749170807182,3.36175,2422.8,2422.0,12.4725]